bitfinex/quotes_ETHUSD_20220215
["timestamp","ask_amount","ask_price","bid_price","bid_amount"]
[1644914651482,0.8125021,3077.2,3076.0,1.13701273]
[1644914651685,0.8126,3076.9,3076.0,0.01390976]
[1644914651884,0.8126,3076.9,3076.5,0.01001249]
[1644914652736,0.8126,3076.9,3076.2,0.01390976]
[1644914652737,1.6251892,3076.9,3076.2,0.01390976]
[1644914652934,0.81265,3076.8,3076.2,0.01390976]
[1644914653139,0.81265,3076.8,3076.5,0.01001249]
[1644914653835,0.55426808,3076.8,3076.5,0.01001249]
[1644914654033,0.55426808,3076.8,3076.3,0.468]
[1644914654239,0.55426808,3076.8,3076.5,0.82251263]
[1644914654634,0.55426808,3076.8,3076.5,0.78941263]
[1644914655234,0.55426808,3076.8,3076.6,0.81247]
[1644914657087,0.55426808,3076.8,3076.6,0.81347]
[1644914657686,0.85426808,3076.8,3076.6,0.81347]
[1644914658086,0.85426808,3076.8,3076.6,0.81247]
[1644914658286,0.55426808,3076.8,3076.6,0.81247]
[1644914660132,0.85426808,3076.8,3076.5,0.82352249]
[1644914660331,0.85034536,3076.8,3076.5,0.82352249]
[1644914660533,1.625,3076.7,3076.5,0.82352249]
[1644914661134,1.625,3076.7,3076.5,0.81351]
[1644914666092,1.625,3076.7,3076.5,1.81351]
[1644914666290,1.625,3076.7,3076.6,0.001]
[1644914666891,1.925,3076.7,3076.6,0.001]
[1644914667331,1.925,3076.7,3076.5,1.82066298]
[1644914667532,1.925,3076.7,3076.6,0.001]
[1644914667732,1.925,3076.7,3076.5,1.82997853]
[1644914667930,1.925,3076.7,3076.6,0.001]
[1644914668130,1.925,3076.7,3076.5,0.82897853]
[1644914668131,1.925,3076.7,3076.5,0.82997853]
[1644914668331,1.925,3076.7,3076.5,0.82897853]
[1644914668535,1.925,3076.7,3076.5,0.81966298]
[1644914668739,2.7375526,3076.7,3076.5,0.01646853]
[1644914668935,2.7375526,3076.7,3076.5,0.00931555]
[1644914669132,0.6,3076.6,3076.2,0.01390976]
[1644914669335,1.41265,3076.6,3076.2,0.01390976]
[1644914669938,1.41265,3076.6,3076.2,0.82652976]
[1644914669939,0.8126548,3076.5,3076.2,0.82652976]
[1644914670134,0.8126548,3076.5,3076.3,0.00715298]
[1644914670135,1.1126548,3076.5,3076.3,0.00715298]
[1644914670337,1.6252548,3076.5,3076.3,0.00715298]
[1644914670539,0.8126,3076.5,3076.3,0.00715298]
[1644914670737,0.8126,3076.5,3076.2,0.01390976]
[1644914671186,0.8126,3076.5,3076.2,0.02258046]
[1644914671985,0.8126,3076.5,3076.2,0.01390976]
[1644914672185,1.4126,3076.5,3076.2,0.01390976]
[1644914672384,1.4126,3076.5,3076.3,1.62493]
[1644914672589,0.6,3076.5,3076.4,0.001]
[1644914675341,0.6,3076.5,3075.8,0.00815298]
[1644914675342,3.2519888,3076.3,3075.8,0.00815298]
[1644914675533,8.9519888,3076.3,3075.7,1.79720298]
[1644914675735,2.11299,3076.2,3075.7,1.79720298]
[1644914675935,1.9259412,3076.2,3075.7,1.79720298]
[1644914676135,1.9259412,3076.2,3075.0,0.02951036]
[1644914676136,7.6259412,3076.2,3075.2,0.01250656]
[1644914676336,1.92589,3075.8,3075.2,0.01250656]
[1644914676535,1.92589,3075.8,3075.0,0.02951036]
[1644914676536,1.6259031,3075.7,3075.0,0.02951036]
[1644914676736,2.22589,3075.8,3075.0,0.02951036]
[1644914676737,0.3,3075.5,3075.0,0.02951036]
[1644914677939,1.1130599,3075.5,3075.0,0.02951036]
[1644914678139,0.81306,3075.4,3075.0,0.02951036]
[1644914679686,0.81306,3075.4,3075.0,0.85240879]
[1644914679888,0.3,3075.3,3075.0,0.85240879]
[1644914680190,0.3,3075.3,3074.6,0.0398797]
[1644914680191,0.01209723,3075.1,3074.6,0.0398797]
[1644914680390,0.01209723,3075.1,3074.4,0.01325984]
[1644914680391,5.7,3075.0,3074.4,0.01325984]
[1644914680594,5.7,3074.9,3074.0,0.0085008]
[1644914680790,0.3,3074.7,3074.0,0.0085008]
[1644914680993,4.0666777,3074.6,3074.0,0.0085008]
[1644914681191,0.6,3074.5,3074.0,0.0085008]
[1644914681388,0.81328,3074.4,3074.0,0.0085008]
[1644914681789,0.3,3074.3,3074.1,0.81311]
[1644914682089,0.3,3074.3,3074.1,0.001]
[1644914682332,0.3,3074.3,3074.0,0.0085008]
[1644914682533,2.73933,3074.3,3074.0,0.0085008]
[1644914683736,6.12544111,3074.3,3074.0,0.0085008]
[1644914683935,2.73933,3074.3,3074.0,0.0085008]
[1644914684138,2.73933,3074.3,3073.9,0.00723456]
[1644914684335,2.73933,3074.3,3074.0,0.02698448]
[1644914684537,4.2349709,3074.2,3074.0,8.448e-05]
[1644914684736,4.2349709,3074.2,3072.8,0.001]
[1644914684737,4.8,3074.0,3072.8,0.001]
[1644914684935,4.8,3074.0,3072.7,0.91054279]
[1644914684936,1.62679,3073.9,3072.7,0.91054279]
[1644914685136,2.4401665,3073.9,3072.9,0.0460423]
[1644914685339,0.3,3073.7,3072.9,0.0460423]
[1644914685536,1.1134,3073.7,3073.0,0.81337]
[1644914685936,1.1134,3073.7,3073.1,0.04490546]
[1644914686788,3.44319567,3073.6,3072.8,0.04661073]
[1644914686988,0.3,3073.6,3072.8,0.04661073]
[1644914687187,0.81335,3073.4,3072.3,0.04945284]
[1644914687387,0.3,3073.6,3072.6,1.12912851]
[1644914687388,0.6,3073.3,3072.6,1.12912851]
[1644914687591,0.3,3073.3,3072.8,1.62667]
[1644914687790,0.3,3073.5,3073.3,0.08747521]
[1644914688190,0.3,3073.5,3073.4,0.04320019]
[1644914688789,1.11333,3073.5,3073.4,0.04320019]
[1644914689190,1.11333,3073.5,3073.3,0.08747521]
[1644914689191,0.3,3073.4,3073.3,0.09066024]
[1644914690134,0.3,3073.4,3073.3,0.0806754]
[1644914692233,0.3,3073.4,3073.2,0.00998512]
[1644914692234,3.7726647,3073.4,3073.2,0.00998512]
[1644914692434,0.3,3073.4,3073.2,0.00998512]
[1644914692635,0.3,3073.3,3072.6,0.001]
[1644914692834,0.8134,3073.2,3072.6,0.04803733]
[1644914693037,1.1134,3073.2,3072.6,0.04803733]
[1644914693236,0.3,3073.1,3072.6,0.0399485]
[1644914693439,0.608,3073.1,3072.6,0.0399485]
[1644914693891,0.8136,3072.9,3072.2,0.01829896]
[1644914694194,0.8136,3072.9,3072.7,0.00998651]
[1644914694195,0.3,3072.8,3072.7,0.00998651]
[1644914694387,0.3,3072.8,3072.7,0.01707534]
[1644914694987,0.3,3072.8,3072.7,0.00708883]
[1644914695389,0.15920801,3072.8,3072.7,0.00708883]
[1644914697837,0.15920801,3072.8,3072.6,0.01068298]
[1644914697838,0.15920801,3072.8,3072.6,0.00968298]
[1644914698640,0.81347,3072.7,3072.4,0.001]
[1644914698842,0.81347,3072.7,3072.5,0.82316312]
[1644914698843,0.6,3072.6,3072.5,0.82316312]
[1644914699043,0.6,3072.6,3072.5,0.83025195]
[1644914699639,0.3,3072.6,3072.5,0.83025195]
[1644914699840,0.3,3072.6,3072.5,0.33025195]
[1644914700639,0.6,3072.6,3072.5,0.33025195]
[1644914702791,0.52060761,3072.6,3072.5,0.33025195]
[1644914706936,0.52460761,3072.6,3072.5,0.33025195]
[1644914707937,0.00473499,3073.2,3072.5,0.33025195]
[1644914708139,1.1327,3073.8,3072.7,0.81329]
[1644914708338,6.1156,3074.1,3072.8,19.578]
[1644914708593,0.81315,3073.7,3073.4,1.14484874]
[1644914708794,0.81315,3073.7,3073.5,0.00808883]
[1644914709195,0.23284377,3073.6,3073.5,0.00808883]
[1644914709495,0.23284377,3073.6,3073.5,1.63431883]
[1644914709496,0.46568754,3073.6,3073.5,1.63431883]
[1644914711797,0.46568754,3073.6,3073.5,2.10231883]
[1644914712194,0.46568754,3073.6,3073.5,3.10231883]
[1644914712843,1.6262,3073.9,3073.6,5.65]
[1644914712844,0.65219817,3073.9,3073.6,5.65]
[1644914713037,8.9816345,3074.8,3073.7,0.469]
[1644914713038,7.3553,3074.8,3073.7,0.469]
[1644914713238,10.7516,3075.1,3073.7,2.37648883]
[1644914713438,7.6044,3075.1,3073.8,0.00808883]
[1644914713638,0.81306,3074.4,3073.9,2.09422]
[1644914713840,0.81306,3074.4,3074.0,0.001]
[1644914714039,0.81306,3074.4,3074.1,0.468]
[1644914714241,0.81306,3074.4,3074.2,0.00708883]
[1644914714441,0.3,3074.3,3074.2,1.28820883]
[1644914714643,0.3,3074.3,3074.2,1.28212]
[1644914714840,0.3,3074.3,3074.2,0.82120883]
[1644914715040,0.3,3074.3,3074.2,0.82020883]
[1644914715541,0.81306,3074.4,3074.2,1.28820883]
[1644914715742,0.00472387,3074.4,3074.3,3.46224454]
[1644914715941,0.00472387,3074.4,3074.3,0.47608883]
[1644914716590,3.2520138,3075.1,3074.3,0.47608883]
[1644914716787,0.3,3075.0,3074.5,0.81303]
[1644914717091,1.113,3075.0,3074.6,0.468]
[1644914717288,4.45678901,3075.0,3074.6,0.001]
[1644914717497,4.45678901,3075.0,3074.4,0.001]
[1644914717688,5.26985401,3075.0,3074.2,0.001]
[1644914717889,0.81318,3074.9,3074.3,0.00708883]
[1644914718090,0.81318,3074.9,3074.0,0.001]
[1644914718091,5.41789032,3074.8,3074.0,0.001]
[1644914718292,2.22632,3074.8,3073.5,0.00808883]
[1644914718490,2.22632,3074.8,3073.3,0.00808883]
[1644914718689,5.72632,3074.8,3073.7,1.62631]
[1644914718891,5.72632,3074.8,3073.8,0.82128883]
[1644914719092,0.81322,3074.6,3073.8,0.82128883]
[1644914719291,1.88103387,3074.5,3073.8,0.82128883]
[1644914719491,2.18103387,3074.5,3073.8,0.82128883]
[1644914719947,7.61293387,3074.5,3073.8,0.00808883]
[1644914720148,7.61293387,3074.5,3073.3,0.00808883]
[1644914720347,0.8131655,3074.3,3073.3,0.00808883]
[1644914720548,2.44014,3074.1,3072.9,0.00808883]
[1644914720748,2.44014,3074.1,3072.9,0.00708883]
[1644914720749,0.3,3074.0,3072.9,0.00708883]
[1644914721051,0.3,3074.0,3073.4,1.0226547]
[1644914721248,0.8133107,3073.8,3073.5,0.00808883]
[1644914721449,0.81337,3073.7,3073.5,0.00808883]
[1644914721649,4.48574845,3073.7,3073.5,0.00808883]
[1644914721847,4.48574845,3073.7,3073.1,0.00808883]
[1644914721848,0.3,3073.7,3073.1,0.00808883]
[1644914722448,0.8134102,3073.5,3073.1,0.00808883]
[1644914722650,1.6268302,3073.5,3073.1,0.00808883]
[1644914722848,1.6268302,3073.5,3073.1,0.82146883]
[1644914722849,2.2268302,3073.5,3073.1,0.82146883]
[1644914723051,2.2268302,3073.5,3073.2,0.00708883]
[1644914723892,2.4403117,3073.4,3073.2,0.00708883]
[1644914724088,0.6,3073.3,3073.2,0.00708883]
[1644914724288,0.6,3073.3,3073.1,0.00999507]
[1644914724891,2.14970593,3073.3,3073.1,0.00999507]
[1644914725191,2.14970593,3073.3,3073.1,0.00708883]
[1644914725790,2.14970593,3073.3,3073.1,0.00808883]
[1644914726590,2.14970593,3073.3,3073.1,0.00708883]
[1644914730438,2.14970593,3073.3,3072.9,1.45826408]
[1644914731387,2.14970593,3073.3,3073.0,0.81342]
[1644914735338,2.14154169,3073.3,3073.0,0.81342]
[1644914735534,2.14154169,3073.3,3073.0,0.81442]
[1644914742741,2.14154169,3073.3,3073.0,1.62782]
[1644914742943,2.14154169,3073.3,3073.1,0.81442]
[1644914743841,2.14154169,3073.3,3073.1,0.81342]
[1644914745341,1.62691,3073.3,3073.1,0.81342]
[1644914745742,1.62691,3073.3,3073.2,0.468]
[1644914745942,1.62691,3073.3,3073.2,0.469]
[1644914747295,1.92691,3073.3,3073.2,0.469]
[1644914749394,1.92691,3073.3,3073.2,0.001]
[1644914749595,1.92691,3073.3,3073.1,0.81442]
[1644914750548,2.52460309,3073.9,3073.8,2.43543339]
[1644914750850,1.38397698,3073.9,3073.8,2.43643339]
[1644914751246,6.80883122,3074.5,3073.8,2.43643339]
[1644914751447,2.38394479,3074.4,3073.9,1.6278]
[1644914751645,2.38394479,3074.4,3074.0,0.001]
[1644914751646,1.38394479,3074.3,3074.0,0.001]
[1644914751847,1.38394479,3074.3,3074.0,0.8133909]
[1644914752047,1.38394479,3074.3,3074.0,0.8143909]
[1644914752247,2.19731479,3074.3,3074.0,0.8143909]
[1644914752449,32.77850278,3074.6,3074.0,0.8143909]
[1644914752450,1.38394479,3074.2,3074.0,0.8143909]
[1644914752748,1.38394479,3074.1,3074.0,0.8143909]
[1644914752947,31.77850278,3074.6,3074.0,0.8143909]
[1644914753147,1.38386623,3074.5,3074.1,0.81334]
[1644914753351,0.81335,3074.4,3074.1,0.81434]
[1644914753599,31.77850278,3074.6,3074.1,0.81434]
[1644914753600,1.38386623,3074.3,3074.1,0.81434]
[1644914753802,1.38386623,3074.2,3074.1,1.62768]
[1644914753999,1.38386623,3074.2,3074.1,0.81434]
[1644914754397,1.38386623,3074.3,3074.1,0.81434]
[1644914754601,1.38386623,3074.2,3074.1,0.81434]
[1644914754799,0.81335,3074.3,3074.1,0.81434]
[1644914754998,1.38386623,3074.2,3074.1,0.81434]
[1644914755905,1.38386623,3074.2,3074.1,0.001]
[1644914756100,2.19727623,3074.2,3073.9,0.001]
[1644914756298,1.38386623,3074.1,3073.8,0.001]
[1644914756696,1.30472521,3074.3,3073.8,0.001]
[1644914756900,1.38392083,3074.2,3073.9,0.81343]
[1644914757099,1.38392083,3074.2,3073.7,1.23406857]
[1644914757355,1.38392083,3074.2,3073.1,0.00946964]
[1644914757356,5.0,3073.8,3073.1,0.00946964]
[1644914757551,1.47642877,3073.6,3072.2,5.09337607]
[1644914757758,1.38392083,3073.5,3073.1,0.00946955]
[1644914758149,2.38392083,3073.5,3073.1,0.00946955]
[1644914758351,1.38392083,3073.4,3073.1,0.00946955]
[1644914758751,1.0,3073.5,3073.0,0.8136202]
[1644914758953,0.81369,3073.3,3073.1,0.00946933]
[1644914759354,0.81369,3073.3,3073.1,0.82307933]
[1644914759753,0.81369,3073.3,3073.1,1.63666093]
[1644914759956,1.81355,3073.5,3073.1,0.81361]
[1644914760354,1.96754551,3073.6,3073.1,0.81361]
[1644914760554,1.38414674,3073.5,3073.1,0.81361]
[1644914760957,2.19770674,3073.5,3073.1,0.81361]
[1644914761192,0.81356,3073.5,3073.1,0.81361]
[1644914761389,0.81356,3073.5,3073.1,0.82322283]
[1644914761592,0.81356,3073.5,3073.4,0.96152873]
[1644914761789,1.96754551,3073.6,3073.2,0.813552]
[1644914762089,1.96754551,3073.6,3073.2,2.440422]
[1644914762290,1.96754551,3073.6,3073.3,0.001]
[1644914762891,1.96754551,3073.6,3073.3,1.62771]
[1644914763091,1.96754551,3073.6,3073.4,0.001]
[1644914763290,1.96754551,3073.6,3073.3,0.81444]
[1644914763992,1.96754551,3073.6,3073.4,0.81347]
[1644914764292,1.47642877,3073.6,3073.4,0.81447]
[1644914765345,1.47642877,3073.6,3073.5,0.81336]
[1644914765546,1.47642877,3073.6,3073.5,0.001]
[1644914765746,1.47642877,3073.6,3073.4,0.81447]
[1644914766546,1.47642877,3073.6,3073.4,1.6278751]
[1644914766746,1.47642877,3073.6,3073.5,0.001]
[1644914768698,2.86070246,3073.6,3073.5,0.001]
[1644914769097,2.86070246,3073.6,3073.4,0.81447]
[1644914769301,1.47642877,3073.6,3073.4,0.81447]
[1644914769498,1.47642877,3073.6,3073.4,0.001]
[1644914770499,1.47642877,3073.6,3073.4,0.81447]
[1644914771602,1.38433611,3073.5,3073.4,0.001]
[1644914771803,5.65,3073.4,3073.1,0.00926605]
[1644914772000,1.38433611,3073.3,3072.8,1.62736]
[1644914772199,1.38433611,3073.3,3073.1,0.00926602]
[1644914772444,2.68433611,3073.3,3073.1,0.00926602]
[1644914772642,30.35381753,3073.2,3073.1,0.00926602]
[1644914772842,29.20142986,3073.2,3073.1,0.00926602]
[1644914773042,3.23194844,3073.2,3073.1,0.00926602]
[1644914773241,1.38433611,3073.2,3072.2,0.01829896]
[1644914773442,1.38433611,3073.1,3073.0,0.00926629]
[1644914773841,1.38433611,3073.3,3073.0,0.00926629]
[1644914774444,1.38433611,3073.3,3073.0,0.81368]
[1644914774643,1.38433611,3073.3,3073.0,0.82294629]
[1644914775646,1.38433611,3073.3,3073.0,0.81368]
[1644914775844,1.38433611,3073.3,3073.0,1.63656089]
[1644914776097,1.38433611,3073.3,3073.1,0.81361]
[1644914776495,1.38433611,3073.3,3073.1,1.62719]
[1644914776698,1.38433611,3073.2,3073.1,1.62719]
[1644914776897,1.38433611,3073.3,3073.1,0.81361]
[1644914777096,1.38433611,3073.2,3073.1,0.81361]
[1644914777597,0.81363,3073.3,3073.1,0.81361]
[1644914777797,1.38433611,3073.2,3073.1,0.81361]
[1644914778598,1.38433611,3073.4,3073.0,1.63652426]
[1644914778797,1.38433611,3073.3,3073.0,1.63652426]
[1644914778997,1.38433611,3073.2,3073.0,1.63652426]
[1644914779199,32.77850278,3073.5,3073.0,2.44085]
[1644914779402,2.38451385,3073.4,3073.0,1.62721]
[1644914779599,1.38451385,3073.3,3073.0,1.63652114]
[1644914779838,1.38451385,3073.2,3073.0,1.63652114]
[1644914780044,1.38451385,3073.4,3073.0,1.63652114]
[1644914780240,1.38451385,3073.3,3073.0,1.63652114]
[1644914780440,1.38451385,3073.3,3073.0,1.62721]
[1644914780739,1.38451385,3073.3,3073.0,1.63652101]
[1644914780938,1.38451385,3073.2,3073.0,1.63652101]
[1644914781143,32.77850278,3073.5,3073.1,0.3]
[1644914781144,1.0,3073.5,3073.1,0.3]
[1644914781342,1.47642877,3073.6,3073.1,1.92697]
[1644914781542,1.47642877,3073.6,3073.2,0.81345]
[1644914781744,1.38439322,3073.5,3073.2,0.81345]
[1644914782141,1.38439322,3073.5,3073.3,0.81358]
[1644914782340,1.38439322,3073.5,3073.3,2.4405256]
[1644914782543,1.38439322,3073.5,3073.4,0.3]
[1644914782741,1.38439322,3073.5,3073.3,2.4405256]
[1644914782942,1.47642877,3073.6,3073.3,2.4405256]
[1644914783144,1.47642877,3073.6,3073.4,1.11348]
[1644914783444,1.47642877,3073.6,3073.4,1.9269495]
[1644914783697,1.47642877,3073.6,3073.4,1.6269495]
[1644914784698,1.47642877,3073.6,3073.4,1.9269495]
[1644914785399,1.47642877,3073.6,3073.4,0.8134695]
[1644914785400,3.29273504,3073.5,3073.4,0.8134695]
[1644914785600,1.38433514,3073.5,3073.3,0.81358]
[1644914786607,1.47642877,3073.6,3073.4,1.1135629]
[1644914787003,1.47642877,3073.6,3073.5,0.001]
[1644914788553,2.86074233,3073.6,3073.5,0.001]
[1644914788753,1.47642877,3073.6,3073.5,0.001]
[1644914791810,2.86072776,3073.6,3073.5,0.001]
[1644914792006,1.47642877,3073.6,3073.5,0.001]
[1644914792219,1.38432378,3073.6,3073.5,0.301]
[1644914792408,1.2245,3074.4,3074.0,0.81321]
[1644914792609,6.209,3074.5,3074.0,3.0395748]
[1644914792808,6.1798,3074.9,3074.1,0.001]
[1644914792809,8.00949854,3074.9,3074.1,0.001]
[1644914793010,2.9833,3074.9,3074.1,0.001]
[1644914793213,3.58746517,3074.9,3074.1,0.001]
[1644914793509,3.58746517,3074.9,3074.1,0.81422]
[1644914793714,0.62021389,3074.8,3074.4,3.65]
[1644914793916,1.0,3075.3,3074.5,23.079]
[1644914794113,1.0,3075.3,3074.6,0.001]
[1644914794312,1.0,3075.5,3074.7,0.468]
[1644914794718,7.2492,3076.2,3074.7,1.28109]
[1644914794945,7.2492,3076.2,3074.9,0.81292]
[1644914794946,5.0,3076.0,3074.9,0.81292]
[1644914795146,5.0,3076.0,3074.7,2.0938437]
[1644914795147,0.66212918,3074.8,3074.7,3.2516737]
[1644914796148,5.65,3074.7,3073.8,0.77192012]
[1644914796352,0.01266471,3074.1,3073.2,0.00999261]
[1644914796953,2.81349,3074.4,3073.6,0.81347]
[1644914797253,1.0,3074.3,3073.6,0.81347]
[1644914797448,1.0,3074.3,3073.4,1.62693]
[1644914797449,0.00471317,3074.0,3073.4,1.62693]
[1644914798051,0.81358,3073.9,3073.4,1.62693]
[1644914798899,3.35998899,3073.8,3073.4,1.62693]
[1644914799099,1.00471317,3074.0,3073.4,1.62693]
[1644914799100,0.00471317,3074.0,3073.4,1.62693]
[1644914799300,1.5,3073.7,3073.4,1.62693]
[1644914800301,1.5,3073.7,3073.5,0.001]
[1644914800801,1.5,3073.7,3073.4,0.81452]
[1644914801902,1.5,3073.7,3073.4,1.62801]
[1644914802103,1.5,3073.7,3073.5,0.001]
[1644914802344,1.5,3073.7,3073.4,0.81352]
[1644914802345,1.5,3073.7,3073.4,0.81452]
[1644914803345,1.5,3073.7,3073.4,1.62802]
[1644914803545,1.5,3073.7,3073.5,0.001]
[1644914804745,3.39954429,3073.6,3073.4,0.001]
[1644914804945,1.5,3073.7,3073.2,0.01068694]
[1644914805548,1.5,3073.7,3073.2,0.001]
[1644914805945,1.5,3073.7,3073.2,1.63782689]
[1644914806194,1.5,3073.7,3073.3,1.62778]
[1644914806397,1.5,3073.7,3073.4,0.001]
[1644914806798,1.80013861,3074.5,3073.5,4.1]
[1644914806996,10.7132,3075.1,3073.6,2.09514]
[1644914806997,0.00369614,3074.0,3073.6,2.09514]
[1644914807200,0.00369614,3074.0,3073.8,1.62614]
[1644914807397,0.00369614,3074.0,3073.9,0.301]
[1644914807997,0.66212918,3074.8,3073.9,1.1141]
[1644914808199,0.66212918,3074.8,3074.5,1.12618155]
[1644914808398,0.66212918,3074.8,3074.6,0.001]
[1644914809097,0.66212918,3074.8,3074.6,1.62616]
[1644914809298,0.66212918,3074.8,3074.7,0.001]
[1644914809965,0.66212918,3074.8,3074.6,0.81408]
[1644914812365,9.6151735,3075.8,3074.7,5.15]
[1644914812567,0.13819997,3075.9,3075.5,1.96434613]
[1644914812568,1.38363056,3075.7,3075.5,1.96434613]
[1644914812766,0.75817347,3075.9,3075.6,0.001]
[1644914812969,1.38369709,3075.8,3075.6,0.001]
[1644914813167,1.38369709,3075.8,3075.5,0.81288]
[1644914813168,2.00367059,3075.8,3075.5,0.81288]
[1644914813368,2.00367059,3075.7,3075.5,0.81288]
[1644914813603,1.38369709,3075.6,3075.5,0.81288]
[1644914813794,1.38369709,3075.6,3075.5,0.81388]
[1644914813993,0.49765089,3076.0,3075.5,0.81388]
[1644914813994,1.38364607,3075.8,3075.5,0.81388]
[1644914814293,0.16506458,3076.3,3075.5,1.11388]
[1644914814295,1.38364607,3075.7,3075.5,1.11388]
[1644914814494,0.4841797,3076.3,3075.6,0.001]
[1644914814695,1.38355773,3076.2,3075.6,0.001]
[1644914815095,5.65,3076.1,3075.7,0.8129]
[1644914815296,1.38355773,3076.0,3075.7,0.8129]
[1644914815499,1.38355773,3075.9,3075.7,0.8129]
[1644914815694,4.44053531,3076.3,3075.7,0.8129]
[1644914815695,1.38355773,3075.8,3075.7,1.6257806]
[1644914815897,1.38355773,3076.2,3075.7,1.6257806]
[1644914816096,1.38355773,3076.2,3075.7,3.2515906]
[1644914816298,1.38355773,3076.1,3075.7,3.2515906]
[1644914816495,1.38355773,3076.0,3075.7,3.2515906]
[1644914816696,0.00256458,3076.5,3075.7,0.8129]
[1644914816697,4.7503228,3075.9,3075.7,0.8129]
[1644914816896,1.38355773,3075.8,3075.7,0.8129]
[1644914817097,1.38355773,3075.8,3075.7,0.81298]
[1644914817356,1.38355773,3076.0,3075.7,0.81298]
[1644914817556,1.38349322,3075.9,3075.7,0.81298]
[1644914817760,0.00256458,3076.3,3075.7,0.81298]
[1644914817958,0.00141852,3076.0,3075.7,0.81298]
[1644914818262,0.00141852,3076.0,3075.8,1.62577]
[1644914818880,1.38357233,3076.0,3075.8,1.62577]
[1644914819060,1.38357233,3075.9,3075.8,1.62577]
[1644914819259,1.38499085,3076.1,3075.8,2.43859]
[1644914819462,1.38357233,3076.0,3075.8,2.43859]
[1644914819860,0.00141852,3076.1,3075.9,0.81276]
[1644914820062,1.38337076,3076.3,3075.9,0.81276]
[1644914820261,1.38337076,3076.3,3076.1,0.81262]
[1644914820464,0.6199735,3077.0,3076.1,5.8878979]
[1644914820764,0.00269537,3076.3,3076.2,2.60691393]
[1644914820960,1.38328695,3076.8,3076.5,0.8125549]
[1644914821198,1.38328695,3076.7,3076.5,0.8135549]
[1644914821398,1.38328695,3076.6,3076.5,2.4376449]
[1644914821595,0.48808749,3077.1,3076.5,0.001]
[1644914821596,1.38598232,3077.0,3076.5,0.001]
[1644914822397,1.38598232,3077.0,3076.5,1.62626]
[1644914822596,0.00269537,3077.0,3076.6,1.62613]
[1644914822796,1.38328695,3077.1,3076.6,1.62613]
[1644914822797,0.00470365,3076.9,3076.7,0.001]
[1644914823198,1.38328695,3076.8,3076.7,0.001]
[1644914824198,1.38328695,3076.8,3076.7,0.81351]
[1644914824399,1.38328695,3076.8,3076.7,0.001]
[1644914824598,1.38328695,3076.8,3076.7,0.81351]
[1644914825448,1.38328695,3076.8,3076.7,0.001]
[1644914826951,0.00470365,3076.9,3076.7,0.001]
[1644914827452,0.00269537,3077.5,3076.7,0.001]
[1644914827655,0.00470365,3077.0,3076.8,1.6250591]
[1644914827851,0.00470365,3077.0,3076.9,0.001]
[1644914828251,1.387683,3077.0,3076.9,0.001]
[1644914828451,1.39037837,3077.0,3076.9,0.001]
[1644914828700,0.00269537,3077.0,3076.9,0.001]
[1644914828897,0.00470365,3077.1,3076.9,1.62584]
[1644914829197,0.00470365,3077.1,3077.0,0.301]
[1644914829397,0.01881179,3077.6,3077.0,0.301]
[1644914829599,0.01881179,3077.6,3077.1,2.71929225]
[1644914829798,0.00269537,3078.1,3077.2,2.738]
[1644914829997,0.00269537,3078.1,3077.3,0.001]
[1644914830198,0.00269537,3078.1,3077.2,0.001]
[1644914830904,1.38530427,3078.5,3077.2,0.001]
[1644914831103,1.38530427,3078.5,3077.5,0.81231]
[1644914831306,1.38530427,3078.5,3078.1,0.88090603]
[1644914831703,1.3826089,3078.4,3077.7,0.001]
[1644914831903,1.38530427,3078.3,3077.6,0.8132452]
[1644914832104,0.00269537,3078.6,3077.6,0.8132452]
[1644914832350,0.00738727,3078.2,3077.6,1.6255552]
[1644914832552,1.3826143,3078.1,3077.7,0.001]
[1644914832754,1.3826143,3078.1,3077.9,0.93503531]
[1644914832950,0.00269537,3078.1,3077.9,0.93503531]
[1644914833150,0.0046919,3078.2,3077.9,0.93503531]
[1644914833351,1.38259833,3078.1,3077.9,0.93503531]
[1644914833551,1.38259833,3078.1,3077.9,1.74732531]
[1644914833552,0.00269537,3078.1,3077.9,1.74732531]
[1644914833749,0.0046919,3078.2,3078.0,0.001]
[1644914833953,0.0046919,3078.2,3077.9,0.81329]
[1644914834149,1.38257976,3078.1,3077.9,0.81329]
[1644914834350,0.00269537,3078.1,3077.9,0.81329]
[1644914834550,0.00269537,3078.5,3077.9,0.81329]
[1644914834750,0.0046919,3078.2,3077.9,0.81329]
[1644914835050,1.38261873,3078.1,3077.9,0.81329]
[1644914835350,1.3853141,3078.1,3077.8,0.96309474]
[1644914836195,1.38261873,3078.0,3077.9,0.81229]
[1644914836600,0.00269537,3078.1,3077.9,0.81229]
[1644914836795,1.38261873,3078.4,3077.9,0.81229]
[1644914836995,2.1977141,3078.3,3077.9,0.81229]
[1644914837199,1.38729972,3078.2,3077.9,0.81229]
[1644914837397,1.38729972,3078.2,3076.8,3.2258]
[1644914837398,1.36700008,3077.8,3076.8,3.2258]
[1644914837596,1.36700008,3077.8,3076.8,1.62514]
[1644914837597,1.3853141,3077.7,3076.8,1.62514]
[1644914837797,1.8533141,3077.7,3076.8,1.62514]
[1644914837996,1.38261873,3077.6,3076.8,1.62514]
[1644914838198,0.00269537,3077.5,3076.8,1.62514]
[1644914838398,0.81531537,3077.5,3076.8,1.62514]
[1644914839100,0.00269537,3077.5,3076.8,1.62514]
[1644914839299,0.00269537,3077.6,3076.8,1.62514]
[1644914839598,0.00269537,3077.6,3076.9,0.8125287]
[1644914839847,0.00269537,3077.6,3077.1,0.81249]
[1644914840244,0.00269537,3077.7,3077.1,0.81249]
[1644914840744,0.00269537,3077.7,3077.3,0.81243]
[1644914840944,1.38548581,3077.7,3077.3,0.81243]
[1644914841546,2.38548581,3077.7,3077.3,0.81243]
[1644914841750,1.38279044,3077.6,3077.3,0.81243]
[1644914841947,0.00269537,3077.5,3077.3,0.81243]
[1644914842346,0.00409861,3077.7,3077.3,0.81243]
[1644914842647,0.00409861,3077.7,3077.3,2.4372028]
[1644914842846,0.00409861,3077.7,3077.4,1.62478]
[1644914843046,0.00269537,3077.7,3077.4,1.62478]